[Event "Kupreichik Memorial Open 2018"]
[Site "Minsk"]
[Date "2018.06.22"]
[Round "6"]
[White "Yurau, Maksim"]
[Black "Kuznetsov, Mikhail V"]
[Result "0-1"]
[ECO "B29"]
[WhiteElo "1694"]
[BlackElo "2162"]
[Annotator "NA"]
[PlyCount "82"]
[EventDate "2018.06.21"]
[EventCountry "BLR"]
[SourceTitle "playchess.com"]
[Source "ChessBase"]
[SourceQuality "1"]
[TimeControl "900+10"]

1. e4 {[%emt 0:00:00]} c5 {[%emt 0:00:01]} 2. Nf3 {[%emt 0:00:00]} Nf6 {[%emt 0:00:01]} 3. Nc3 {[%emt 0:00:00]} d5 {[%emt 0:00:02]} 4. exd5 {[%emt 0:00:07]} Nxd5 {[%emt 0:00:02]} 5. Bb5+ {[%emt 0:01:08]} Bd7 {[%emt 0:00:01]} 6. Bxd7+ {[%emt 0:00:04]} Qxd7 {[%emt 0:00:02]} 7. Nxd5 {[%emt 0:00:29]} Qxd5 {[%emt 0:00:01]} 8. d4 {[%emt 0:00:13]} e6 {[%emt 0:00:58]} 9. O-O {[%emt 0:00:10]} Nc6 {[%emt 0:00:02]} 10. Be3 {[%emt 0:00:44]} c4 {[%emt 0:00:41]} 11. c3 {[%emt 0:00:47]} Bd6 {[%emt 0:00:17]} 12. Qe2 {[%emt 0:00:05]} O-O {[%emt 0:00:11]} 13. Rad1 {[%emt 0:00:55]} b5 {[%emt 0:00:08]} 14. a3 {[%emt 0:00:01]} a5 {[%emt 0:00:15]} 15. Nd2 {[%emt 0:00:41]} Rfb8 {[%emt 0:00:56]} 16. Qf3 {[%emt 0:00:40]} b4 {[%emt 0:00:10]} 17. axb4 {[%emt 0:00:37]} axb4 {[%emt 0:00:03]} 18. Ne4 {[%emt 0:00:53]} Be7 {[%emt 0:00:42]} 19. Ra1 {[%emt 0:01:22]} bxc3 {[%emt 0:00:25]} 20. bxc3 {[%emt 0:00:07]} Na5 {[%emt 0:00:46]} 21. Nd2 {[%emt 0:01:27]} Nb3 {[%emt 0:05:52]} 22. Rxa8 {[%emt 0:01:04]} Rxa8 {[%emt 0:00:05]} 23. Qxd5 {[%emt 0:00:35]} exd5 {[%emt 0:00:02]} 24. Rb1 {[%emt 0:00:02]} Ra2 {[%emt 0:02:00]} 25. Nxb3 {[%emt 0:01:27]} cxb3 {[%emt 0:00:04]} 26. Kf1 {[%emt 0:00:09]} b2 {[%emt 0:01:17]} 27. Ke2 {[%emt 0:00:01]} Ba3 {[%emt 0:00:26]} 28. Kd2 {[%emt 0:00:02]} Ra1 {[%emt 0:00:27]} 29. Kc2 {[%emt 0:00:04]} Kf8 {[%emt 0:00:07]} 30. g4 {[%emt 0:01:17]} Ke8 {[%emt 0:00:10]} 31. Bf4 {[%emt 0:01:21]} Kd7 {[%emt 0:00:09]} 32. Be3 {[%emt 0:00:05]} Kc6 {[%emt 0:00:04]} 33. f4 {[%emt 0:02:15]} Kb5 {[%emt 0:00:18]} 34. Bd2 {[%emt 0:00:34]} Kc4 {[%emt 0:00:25]} 35. Be1 {[%emt 0:00:57]} g6 {[%emt 0:00:01]} 36. h4 {[%emt 0:00:16]} f5 {[%emt 0:00:21]} 37. gxf5 {[%emt 0:00:14]} gxf5 {[%emt 0:00:02]} 38. h5 {[%emt 0:00:08]} Rxb1 {[%emt 0:00:13]} 39. Kxb1 {[%emt 0:00:02]} Kd3 {[%emt 0:00:01]} 40. h6 {[%emt 0:00:22]} Ke2 {[%emt 0:00:03]} 41. Bh4 {[%emt 0:00:05]} Kd2 {[%emt 0:00:03]} 0-1

[Event "Kupreichik Memorial Open 2018"]
[Site "Minsk"]
[Date "2018.06.22"]
[Round "6"]
[White "Selitski, Aleksandr"]
[Black "Artsiomau, Stanislau"]
[Result "0-1"]
[ECO "A65"]
[WhiteElo "1678"]
[BlackElo "1954"]
[Annotator "NA"]
[PlyCount "64"]
[EventDate "2018.06.21"]
[EventCountry "BLR"]
[SourceTitle "playchess.com"]
[Source "ChessBase"]
[SourceQuality "1"]
[TimeControl "900+10"]

1. d4 {[%emt 0:00:00]} Nf6 {[%emt 0:00:01]} 2. c4 {[%emt 0:00:00]} c5 {[%emt 0:00:01]} 3. d5 {[%emt 0:00:01]} e6 {[%emt 0:00:00]} 4. Nc3 exd5 5. cxd5 {[%emt 0:00:07]} d6 {[%emt 0:00:01]} 6. e4 {[%emt 0:00:12]} g6 {[%emt 0:00:01]} 7. Bd3 Bg7 {[%emt 0:00:05]} 8. h3 {[%emt 0:00:23]} O-O {[%emt 0:00:06]} 9. Nf3 {[%emt 0:00:03]} b5 {[%emt 0:00:01]} 10. Bxb5 {[%emt 0:00:49]} Nxe4 {[%emt 0:00:03]} 11. Nxe4 {[%emt 0:00:24]} Qa5+ {[%emt 0:00:01]} 12. Nfd2 {[%emt 0:00:20]} Qxb5 {[%emt 0:00:01]} 13. Nxd6 {[%emt 0:00:12]} Qa6 {[%emt 0:00:01]} 14. N2c4 {[%emt 0:00:22]} Nd7 {[%emt 0:00:16]} 15. O-O {[%emt 0:00:24]} Ne5 {[%emt 0:00:01]} 16. Nxe5 {[%emt 0:01:40]} Qxd6 {[%emt 0:00:18]} 17. Nc4 {[%emt 0:00:30]} Qa6 {[%emt 0:00:01]} 18. Ne3 {[%emt 0:00:44]} Rb8 {[%emt 0:01:08]} 19. Qc2 {[%emt 0:00:27]} Bd4 {[%emt 0:00:08]} 20. Rd1 {[%emt 0:00:53]} Bd7 {[%emt 0:00:12]} 21. a4 {[%emt 0:02:14]} Rb4 {[%emt 0:00:36]} 22. a5 {[%emt 0:00:18]} Rfb8 {[%emt 0:00:11]} 23. Ra2 {[%emt 0:00:25]} Qf6 {[%emt 0:01:00]} 24. a6 {[%emt 0:01:32]} Qh4 {[%emt 0:02:01]} 25. Qe2 {[%emt 0:02:36]} f5 {[%emt 0:00:26]} 26. Qf3 {[%emt 0:01:20]} Rb3 {[%emt 0:01:56]} 27. d6 {[%emt 0:00:26]} Kg7 {[%emt 0:01:59]} 28. Ra3 {[%emt 0:00:11]} f4 {[%emt 0:02:45]} 29. Nf5+ {[%emt 0:00:25]} Bxf5 {[%emt 0:01:02]} 30. Rxb3 {[%emt 0:00:05]} Rxb3 {[%emt 0:00:05]} 31. Qxb3 {[%emt 0:00:03]} Qxf2+ {[%emt 0:00:06]} 32. Kh1 {[%emt 0:00:14]} Be4 0-1

[Event "Kupreichik Memorial Open 2018"]
[Site "Minsk"]
[Date "2018.06.22"]
[Round "6"]
[White "Stsepkina, Yauheniya"]
[Black "Gavrjuchenkova, Angelina"]
[Result "1-0"]
[ECO "D09"]
[WhiteElo "1591"]
[BlackElo "1900"]
[Annotator "NA"]
[PlyCount "51"]
[EventDate "2018.06.21"]
[EventCountry "BLR"]
[SourceTitle "playchess.com"]
[Source "ChessBase"]
[SourceQuality "1"]
[TimeControl "900+10"]

1. d4 {[%emt 0:00:00]} d5 {[%emt 0:00:03]} 2. c4 {[%emt 0:00:00]} e5 {[%emt 0:00:01]} 3. dxe5 {[%emt 0:00:00]} d4 {[%emt 0:00:01]} 4. Nf3 {[%emt 0:00:00]} Nc6 {[%emt 0:00:01]} 5. g3 {[%emt 0:00:00]} Bg4 {[%emt 0:00:03]} 6. Bg2 {[%emt 0:00:08]} Qd7 {[%emt 0:00:48]} 7. O-O {[%emt 0:00:11]} O-O-O {[%emt 0:00:10]} 8. Nbd2 {[%emt 0:00:47]} h5 {[%emt 0:01:02]} 9. a3 {[%emt 0:01:28]} Be7 {[%emt 0:01:47]} 10. b4 {[%emt 0:00:21]} f6 {[%emt 0:00:34]} 11. exf6 {[%emt 0:00:19]} Bxf6 {[%emt 0:01:05]} 12. Bb2 {[%emt 0:01:08]} d3 {[%emt 0:01:29]} 13. Bxf6 {[%emt 0:00:36]} dxe2 {[%emt 0:00:14]} 14. Qxe2 {[%emt 0:00:31]} Nxf6 {[%emt 0:00:01]} 15. Nb3 {[%emt 0:01:15]} Rhe8 {[%emt 0:01:10]} 16. Qb2 {[%emt 0:00:39]} Qd3 {[%emt 0:01:25]} 17. Nc5 {[%emt 0:00:53]} Qxc4 {[%emt 0:01:05]} 18. Rac1 {[%emt 0:01:35]} Qb5 {[%emt 0:00:44]} 19. h3 {[%emt 0:00:49]} Re2 {[%emt 0:01:01]} 20. a4 {[%emt 0:00:38]} Rxb2 {[%emt 0:02:39]} 21. axb5 {[%emt 0:00:02]} Bxf3 {[%emt 0:00:06]} 22. Bxf3 {[%emt 0:00:50]} Nxb4 {[%emt 0:00:06]} 23. Bxb7+ {[%emt 0:00:24]} Kb8 {[%emt 0:00:01]} 24. Bf3 {[%emt 0:01:46]} Nd3 {[%emt 0:01:06]} 25. Na6+ {[%emt 0:00:36]} Kc8 {[%emt 0:00:04]} 26. Rxc7# {[%emt 0:00:07]} 1-0

[Event "Kupreichik Memorial Open 2018"]
[Site "Minsk"]
[Date "2018.06.22"]
[Round "6"]
[White "Korniichuk, Fedir"]
[Black "Arlou, Valery"]
[Result "1-0"]
[ECO "D30"]
[WhiteElo "1568"]
[BlackElo "1743"]
[Annotator "NA"]
[PlyCount "111"]
[EventDate "2018.06.21"]
[EventCountry "BLR"]
[SourceTitle "playchess.com"]
[Source "ChessBase"]
[SourceQuality "1"]
[TimeControl "900+10"]

1. d4 {[%emt 0:00:00]} d5 {[%emt 0:00:26]} 2. c4 {[%emt 0:00:00]} e6 {[%emt 0:00:06]} 3. e3 {[%emt 0:00:01]} Bb4+ {[%emt 0:00:07]} 4. Nc3 {[%emt 0:00:04]} Nc6 {[%emt 0:00:20]} 5. Nf3 {[%emt 0:00:10]} Nf6 {[%emt 0:00:01]} 6. Bd3 {[%emt 0:00:10]} dxc4 {[%emt 0:00:42]} 7. Bxc4 {[%emt 0:00:03]} Ne4 {[%emt 0:00:02]} 8. Qc2 {[%emt 0:00:12]} Nf6 {[%emt 0:00:37]} 9. O-O {[%emt 0:00:09]} O-O {[%emt 0:00:03]} 10. a3 {[%emt 0:00:10]} Be7 {[%emt 0:00:03]} 11. b4 {[%emt 0:00:07]} b6 {[%emt 0:02:18]} 12. Bb2 {[%emt 0:00:28]} Bb7 {[%emt 0:00:02]} 13. Rfd1 {[%emt 0:00:19]} Nb8 {[%emt 0:00:59]} 14. Rd2 {[%emt 0:00:21]} Bxf3 {[%emt 0:00:54]} 15. gxf3 {[%emt 0:00:01]} c6 {[%emt 0:00:31]} 16. Rad1 {[%emt 0:00:36]} Nbd7 {[%emt 0:00:17]} 17. Ne4 {[%emt 0:00:26]} Rc8 {[%emt 0:00:31]} 18. Qb1 {[%emt 0:01:01]} Qc7 {[%emt 0:00:09]} 19. Be2 {[%emt 0:00:34]} Qb7 {[%emt 0:00:37]} 20. Rc1 {[%emt 0:01:35]} Rfd8 {[%emt 0:00:12]} 21. Nxf6+ {[%emt 0:00:49]} Nxf6 {[%emt 0:00:02]} 22. Rdc2 {[%emt 0:00:16]} Rd5 {[%emt 0:01:28]} 23. f4 {[%emt 0:01:28]} Rd7 {[%emt 0:02:21]} 24. Bf3 {[%emt 0:00:08]} Rdc7 {[%emt 0:00:08]} 25. b5 {[%emt 0:01:08]} Nd5 {[%emt 0:00:05]} 26. bxc6 {[%emt 0:01:22]} Rxc6 {[%emt 0:00:14]} 27. Rxc6 {[%emt 0:00:43]} Rxc6 {[%emt 0:00:02]} 28. Qd3 {[%emt 0:00:41]} Rxc1+ {[%emt 0:00:35]} 29. Bxc1 {[%emt 0:00:02]} Qc7 {[%emt 0:00:04]} 30. Bb2 {[%emt 0:00:05]} Bd6 {[%emt 0:01:37]} 31. Qb5 {[%emt 0:00:42]} Kf8 {[%emt 0:00:19]} 32. Bxd5 {[%emt 0:00:26]} exd5 {[%emt 0:00:05]} 33. Qxd5 {[%emt 0:00:04]} a5 {[%emt 0:02:18]} 34. a4 {[%emt 0:00:37]} Be7 {[%emt 0:00:44]} 35. Qa8+ {[%emt 0:00:21]} Qd8 {[%emt 0:00:06]} 36. Qxd8+ {[%emt 0:00:15]} Bxd8 {[%emt 0:00:01]} 37. Kf1 {[%emt 0:00:06]} f5 {[%emt 0:00:09]} 38. Ke2 {[%emt 0:00:10]} Kf7 {[%emt 0:00:07]} 39. f3 {[%emt 0:00:13]} Bc7 {[%emt 0:00:05]} 40. Bc1 {[%emt 0:00:09]} Ke6 {[%emt 0:00:53]} 41. Kd3 {[%emt 0:00:14]} Kd6 {[%emt 0:00:43]} 42. e4 {[%emt 0:00:12]} fxe4+ {[%emt 0:00:06]} 43. fxe4 {[%emt 0:00:02]} Kc6 {[%emt 0:00:27]} 44. Kc4 {[%emt 0:00:09]} h5 {[%emt 0:00:13]} 45. d5+ {[%emt 0:00:09]} Kd7 {[%emt 0:00:10]} 46. e5 {[%emt 0:00:08]} h4 {[%emt 0:00:08]} 47. h3 {[%emt 0:00:03]} g6 {[%emt 0:00:05]} 48. d6 {[%emt 0:00:17]} Bd8 {[%emt 0:00:03]} 49. Kd5 {[%emt 0:00:06]} b5 {[%emt 0:00:24]} 50. e6+ {[%emt 0:00:05]} Ke8 {[%emt 0:00:06]} 51. axb5 {[%emt 0:00:05]} a4 {[%emt 0:00:02]} 52. Ba3 {[%emt 0:00:05]} Ba5 {[%emt 0:00:12]} 53. d7+ {[%emt 0:00:08]} Kd8 {[%emt 0:00:03]} 54. Kd6 {[%emt 0:00:06]} Bc7+ {[%emt 0:00:03]} 55. Kc6 {[%emt 0:00:09]} Bxf4 {[%emt 0:00:41]} 56. e7# {[%emt 0:00:02] Ke8} 1-0

[Event "Kupreichik Memorial Open 2018"]
[Site "Minsk"]
[Date "2018.06.22"]
[Round "6"]
[White "Drobyshevsky, Vasily"]
[Black "Svjatocho, Andrej"]
[Result "0-1"]
[ECO "A25"]
[WhiteElo "1551"]
[BlackElo "1979"]
[Annotator "NA"]
[PlyCount "62"]
[EventDate "2018.06.21"]
[EventCountry "BLR"]
[SourceTitle "playchess.com"]
[Source "ChessBase"]
[SourceQuality "1"]
[TimeControl "900+10"]

1. c4 {[%emt 0:00:00]} e5 {[%emt 0:00:03]} 2. Nc3 {[%emt 0:00:00]} Nc6 {[%emt 0:00:02]} 3. e3 {[%emt 0:00:00]} f5 {[%emt 0:00:02]} 4. d4 {[%emt 0:00:01]} e4 {[%emt 0:00:03]} 5. d5 {[%emt 0:00:03]} Ne5 {[%emt 0:00:04]} 6. f4 {[%emt 0:01:26]} exf3 {[%emt 0:00:09]} 7. Nxf3 {[%emt 0:00:02]} d6 {[%emt 0:00:09]} 8. Be2 {[%emt 0:00:19]} Nf6 {[%emt 0:00:04]} 9. Bd2 {[%emt 0:01:24]} g6 {[%emt 0:00:06]} 10. h3 {[%emt 0:00:26]} Bg7 {[%emt 0:00:14]} 11. O-O {[%emt 0:00:47]} O-O {[%emt 0:00:07]} 12. Nd4 {[%emt 0:00:56]} Qe7 {[%emt 0:00:15]} 13. Qb3 {[%emt 0:01:23]} Kh8 {[%emt 0:00:51]} 14. Qc2 {[%emt 0:01:42]} Nf7 {[%emt 0:01:46]} 15. Nf3 {[%emt 0:00:32]} Bd7 {[%emt 0:00:22]} 16. Bd3 {[%emt 0:00:14]} Rae8 {[%emt 0:01:06]} 17. Rae1 {[%emt 0:00:03]} Ne5 {[%emt 0:00:06]} 18. Nxe5 {[%emt 0:00:21]} dxe5 {[%emt 0:00:26]} 19. e4 {[%emt 0:00:16]} f4 {[%emt 0:00:03]} 20. a3 {[%emt 0:02:03]} Nh5 {[%emt 0:00:23]} 21. Ne2 {[%emt 0:00:14]} f3 {[%emt 0:01:50]} 22. gxf3 {[%emt 0:04:16]} Bxh3 {[%emt 0:02:32]} 23. Rf2 {[%emt 0:00:02]} Rf7 {[%emt 0:00:03]} 24. f4 {[%emt 0:00:41]} exf4 {[%emt 0:00:10]} 25. Nxf4 {[%emt 0:00:04]} Nxf4 {[%emt 0:01:38]} 26. Bxf4 {[%emt 0:00:24]} Rxf4 {[%emt 0:02:10]} 27. Rxf4 {[%emt 0:00:29]} Qg5+ {[%emt 0:00:03]} 28. Kh1 {[%emt 0:00:07]} Qxf4 {[%emt 0:00:13]} 29. Qe2 {[%emt 0:00:43]} Bg4 {[%emt 0:00:23]} 30. Qe3 {[%emt 0:00:10]} Bf3+ {[%emt 0:00:06]} 31. Kg1 {[%emt 0:00:16]} Qg3+ {[%emt 0:00:03] Kh2} 0-1

[Event "Kupreichik Memorial Open 2018"]
[Site "Minsk"]
[Date "2018.06.22"]
[Round "6"]
[White "Tkachou, Pavel"]
[Black "Runets, Ivan"]
[Result "0-1"]
[ECO "A46"]
[WhiteElo "1535"]
[BlackElo "2027"]
[Annotator "NA"]
[PlyCount "50"]
[EventDate "2018.06.21"]
[EventCountry "BLR"]
[SourceTitle "playchess.com"]
[Source "ChessBase"]
[SourceQuality "1"]
[TimeControl "900+10"]

1. d4 {[%emt 0:00:00]} Nf6 {[%emt 0:00:02]} 2. Nf3 {[%emt 0:00:00]} e6 {[%emt 0:00:03]} 3. b3 {[%emt 0:00:00]} b6 {[%emt 0:00:01]} 4. Bb2 {[%emt 0:00:00]} Bb7 {[%emt 0:00:01]} 5. g3 {[%emt 0:00:06]} Be7 {[%emt 0:00:02]} 6. Bg2 {[%emt 0:00:01]} O-O {[%emt 0:00:03]} 7. O-O {[%emt 0:00:02]} c5 {[%emt 0:00:27]} 8. c4 {[%emt 0:00:38]} cxd4 {[%emt 0:00:15]} 9. Nxd4 {[%emt 0:00:07]} Bxg2 {[%emt 0:00:03]} 10. Kxg2 {[%emt 0:00:03]} Nc6 {[%emt 0:00:06]} 11. Nxc6 {[%emt 0:01:20]} dxc6 {[%emt 0:00:01]} 12. Nc3 {[%emt 0:00:02]} Qc7 {[%emt 0:00:16]} 13. Qc2 {[%emt 0:00:25]} Rad8 {[%emt 0:00:06]} 14. Rad1 {[%emt 0:00:05]} Rxd1 {[%emt 0:00:25]} 15. Rxd1 {[%emt 0:00:01]} Rd8 {[%emt 0:00:01]} 16. Rxd8+ {[%emt 0:00:21]} Qxd8 {[%emt 0:00:01]} 17. Qd3 {[%emt 0:00:34]} Nd7 {[%emt 0:02:44]} 18. Ne4 {[%emt 0:00:32]} f5 {[%emt 0:01:10]} 19. Qd4 {[%emt 0:00:56]} e5 {[%emt 0:00:44]} 20. Qd3 {[%emt 0:02:05]} fxe4 {[%emt 0:00:04]} 21. Qxe4 {[%emt 0:00:02]} Qc7 {[%emt 0:00:33]} 22. f4 {[%emt 0:00:31]} Bf6 {[%emt 0:00:24]} 23. g4 {[%emt 0:01:02]} exf4 {[%emt 0:00:29]} 24. Qe8+ {[%emt 0:00:13]} Nf8 {[%emt 0:00:05]} 25. Ba3 {[%emt 0:00:21]} c5 {[%emt 0:00:08]} 0-1

[Event "Kupreichik Memorial Open 2018"]
[Site "Minsk"]
[Date "2018.06.22"]
[Round "7"]
[White "Nikitenko, Mihail"]
[Black "Sadovnikov, Konstantin"]
[Result "1-0"]
[ECO "B33"]
[WhiteElo "2401"]
[BlackElo "1908"]
[Annotator "NA"]
[PlyCount "67"]
[EventDate "2018.06.21"]
[EventCountry "BLR"]
[SourceTitle "playchess.com"]
[Source "ChessBase"]
[SourceQuality "1"]
[TimeControl "900+10"]

1. e4 {[%emt 0:00:00]} c5 {[%emt 0:00:01]} 2. Nf3 {[%emt 0:00:00]} Nc6 {[%emt 0:00:01]} 3. Nc3 {[%emt 0:00:00]} Nf6 {[%emt 0:00:06]} 4. d4 {[%emt 0:00:00]} cxd4 {[%emt 0:00:03]} 5. Nxd4 {[%emt 0:00:00]} e5 {[%emt 0:00:01]} 6. Ndb5 {[%emt 0:00:00]} d6 {[%emt 0:00:01]} 7. Bg5 {[%emt 0:00:03]} a6 {[%emt 0:00:00]} 8. Na3 {[%emt 0:00:02]} b5 {[%emt 0:00:02]} 9. Nd5 {[%emt 0:00:02]} Be7 {[%emt 0:00:01]} 10. Bxf6 {[%emt 0:00:02]} Bxf6 {[%emt 0:00:01]} 11. c4 {[%emt 0:00:03]} b4 {[%emt 0:00:04]} 12. Nc2 {[%emt 0:00:01]} O-O {[%emt 0:00:02]} 13. g3 {[%emt 0:00:04]} Rb8 {[%emt 0:00:06]} 14. h4 {[%emt 0:00:29]} a5 {[%emt 0:01:13]} 15. Bh3 {[%emt 0:00:08]} Be6 {[%emt 0:00:46]} 16. Qd3 {[%emt 0:00:30]} Bxh3 {[%emt 0:00:48]} 17. Rxh3 {[%emt 0:00:03]} Qd7 {[%emt 0:00:01]} 18. Nxf6+ {[%emt 0:00:17]} gxf6 {[%emt 0:00:01]} 19. g4 {[%emt 0:00:13]} Kh8 {[%emt 0:00:48]} 20. f3 {[%emt 0:00:56]} Rg8 {[%emt 0:01:13]} 21. O-O-O {[%emt 0:00:11]} Rbd8 {[%emt 0:00:20]} 22. h5 {[%emt 0:00:10]} a4 {[%emt 0:00:11]} 23. b3 {[%emt 0:00:02]} axb3 {[%emt 0:00:03]} 24. axb3 {[%emt 0:00:03]} Qa7 {[%emt 0:01:42]} 25. Kb2 {[%emt 0:00:05]} Qf2 {[%emt 0:00:31]} 26. Qd2 {[%emt 0:00:11]} Qa7 {[%emt 0:02:19]} 27. Ra1 {[%emt 0:00:06]} Qb6 {[%emt 0:00:14]} 28. Qh6 {[%emt 0:00:05]} Rg7 {[%emt 0:01:43]} 29. Qxf6 {[%emt 0:00:04]} Kg8 {[%emt 0:00:00]} 30. Rh2 {[%emt 0:00:01]} Nd4 {[%emt 0:00:22]} 31. Ra6 {[%emt 0:00:15]} Qc7 {[%emt 0:00:19]} 32. Nxd4 {[%emt 0:00:03]} exd4 {[%emt 0:00:01]} 33. Rd2 {[%emt 0:00:02]} Re8 {[%emt 0:00:31]} 34. Qxd6 {[%emt 0:00:10]} 1-0

[Event "Kupreichik Memorial Open 2018"]
[Site "Minsk"]
[Date "2018.06.22"]
[Round "7"]
[White "Meshkov, Yuri A"]
[Black "Kirilin, Dmitrij"]
[Result "1-0"]
[ECO "B52"]
[WhiteElo "2375"]
[BlackElo "1898"]
[Annotator "NA"]
[PlyCount "55"]
[EventDate "2018.06.21"]
[EventCountry "BLR"]
[SourceTitle "playchess.com"]
[Source "ChessBase"]
[SourceQuality "1"]
[TimeControl "900+10"]

1. e4 {[%emt 0:00:00]} c5 {[%emt 0:00:01]} 2. Nf3 {[%emt 0:00:00]} d6 {[%emt 0:00:01]} 3. Bb5+ {[%emt 0:00:00]} Bd7 {[%emt 0:00:03]} 4. a4 {[%emt 0:00:00]} Nc6 {[%emt 0:00:07]} 5. O-O {[%emt 0:00:00]} Nf6 {[%emt 0:00:05]} 6. Re1 {[%emt 0:00:14]} a6 {[%emt 0:00:27]} 7. Bc4 {[%emt 0:00:10]} e6 {[%emt 0:00:14]} 8. h3 {[%emt 0:00:14]} Qc7 {[%emt 0:00:14]} 9. b3 {[%emt 0:00:21]} Be7 {[%emt 0:00:40]} 10. Bb2 {[%emt 0:00:01]} e5 {[%emt 0:00:46]} 11. c3 {[%emt 0:00:23]} O-O {[%emt 0:01:17]} 12. d4 {[%emt 0:00:01]} cxd4 {[%emt 0:00:05]} 13. cxd4 {[%emt 0:00:01]} Rae8 {[%emt 0:01:39]} 14. Nc3 {[%emt 0:00:46]} Bd8 {[%emt 0:00:21]} 15. Rc1 {[%emt 0:00:16]} Qb8 {[%emt 0:00:12]} 16. dxe5 {[%emt 0:01:02]} dxe5 {[%emt 0:00:07]} 17. Nd5 {[%emt 0:00:01]} Bc8 {[%emt 0:02:01]} 18. Ba3 {[%emt 0:00:14]} Be7 {[%emt 0:00:56]} 19. Nxe7+ {[%emt 0:00:17]} Nxe7 {[%emt 0:00:22]} 20. Bd6 {[%emt 0:00:11]} Qa7 {[%emt 0:00:06]} 21. Nxe5 {[%emt 0:00:22]} Rd8 {[%emt 0:00:06]} 22. Nxf7 Rxf7 {[%emt 0:00:14]} 23. Bxf7+ {[%emt 0:00:41]} Kxf7 {[%emt 0:00:01]} 24. e5 {[%emt 0:00:01]} Nfd5 {[%emt 0:00:20]} 25. e6+ {[%emt 0:02:28]} Ke8 {[%emt 0:01:23]} 26. Qh5+ {[%emt 0:00:21]} g6 {[%emt 0:00:24]} 27. Qxh7 Rxd6 {[%emt 0:00:18]} 28. Qh8+ {[%emt 0:00:06]} 1-0

[Event "Kupreichik Memorial Open 2018"]
[Site "Minsk"]
[Date "2018.06.22"]
[Round "7"]
[White "Zhukova, Natalia"]
[Black "Savolainen, Lev P"]
[Result "1-0"]
[ECO "D35"]
[WhiteElo "2356"]
[BlackElo "2163"]
[Annotator "NA"]
[PlyCount "64"]
[EventDate "2018.06.21"]
[EventCountry "BLR"]
[SourceTitle "playchess.com"]
[Source "ChessBase"]
[SourceQuality "1"]
[TimeControl "900+10"]

1. c4 {[%emt 0:00:00]} e6 {[%emt 0:00:06]} 2. Nc3 {[%emt 0:00:00]} d5 {[%emt 0:00:02]} 3. d4 {[%emt 0:00:00]} Nf6 {[%emt 0:00:03]} 4. cxd5 {[%emt 0:00:04]} exd5 {[%emt 0:00:02]} 5. Bg5 {[%emt 0:00:02]} Nbd7 {[%emt 0:00:04]} 6. e3 {[%emt 0:00:05]} Be7 {[%emt 0:00:02]} 7. Bd3 {[%emt 0:00:06]} a6 {[%emt 0:00:02]} 8. Nge2 {[%emt 0:00:08]} c5 {[%emt 0:00:02]} 9. O-O {[%emt 0:00:28]} c4 {[%emt 0:00:02]} 10. Bf5 {[%emt 0:00:19]} b5 {[%emt 0:00:03]} 11. Nf4 {[%emt 0:00:51]} Bb7 {[%emt 0:00:04]} 12. Qf3 {[%emt 0:01:16]} O-O {[%emt 0:01:13]} 13. Bxd7 {[%emt 0:04:04]} Qxd7 {[%emt 0:00:08]} 14. Bxf6 {[%emt 0:00:02]} Bxf6 {[%emt 0:00:04]} 15. Ncxd5 {[%emt 0:02:04]} Bd8 {[%emt 0:00:08]} 16. e4 {[%emt 0:01:56]} g5 {[%emt 0:00:19]} 17. Qg3 {[%emt 0:02:35]} Kh8 {[%emt 0:00:26]} 18. Ne2 {[%emt 0:01:23]} Bxd5 {[%emt 0:00:33]} 19. exd5 {[%emt 0:00:01]} Qxd5 {[%emt 0:00:39]} 20. Rad1 {[%emt 0:00:12]} Bf6 {[%emt 0:00:45]} 21. Nc3 {[%emt 0:00:05]} Qf5 {[%emt 0:00:36]} 22. d5 {[%emt 0:00:52]} Rad8 {[%emt 0:01:18]} 23. Rfe1 {[%emt 0:00:10]} Rfe8 {[%emt 0:00:20]} 24. Rxe8+ {[%emt 0:00:09]} Rxe8 {[%emt 0:00:01]} 25. d6 {[%emt 0:01:01]} Rd8 {[%emt 0:00:25]} 26. Qf3 {[%emt 0:00:47]} Qxf3 {[%emt 0:02:28]} 27. gxf3 {[%emt 0:00:00]} Be5 {[%emt 0:00:23]} 28. Ne4 {[%emt 0:00:23]} Bxb2 {[%emt 0:00:40]} 29. Nc5 {[%emt 0:00:32]} c3 {[%emt 0:00:07]} 30. Nb7 {[%emt 0:00:13]} c2 {[%emt 0:00:12]} 31. Re1 {[%emt 0:00:09]} Rd7 {[%emt 0:00:11]} 32. Re8+ {[%emt 0:00:09]} Kg7 {[%emt 0:00:03]} 1-0

[Event "Kupreichik Memorial Open 2018"]
[Site "Minsk"]
[Date "2018.06.22"]
[Round "7"]
[White "Kalugin, Sergey G"]
[Black "Rybakova, Polina"]
[Result "1-0"]
[ECO "B01"]
[WhiteElo "2334"]
[BlackElo "1826"]
[Annotator "NA"]
[PlyCount "55"]
[EventDate "2018.06.21"]
[EventCountry "BLR"]
[SourceTitle "playchess.com"]
[Source "ChessBase"]
[SourceQuality "1"]
[TimeControl "900+10"]

1. e4 {[%emt 0:00:00]} d5 {[%emt 0:00:06]} 2. exd5 {[%emt 0:00:00]} Qxd5 {[%emt 0:00:01]} 3. Nf3 {[%emt 0:00:00]} Bg4 {[%emt 0:00:05]} 4. Be2 {[%emt 0:00:03]} Nc6 {[%emt 0:00:09]} 5. O-O {[%emt 0:00:09]} O-O-O {[%emt 0:00:22]} 6. Nc3 {[%emt 0:00:10]} Qd7 {[%emt 0:00:16]} 7. b4 {[%emt 0:00:29]} Bxf3 {[%emt 0:00:57]} 8. Bxf3 {[%emt 0:00:02]} Nd4 {[%emt 0:00:21]} 9. Rb1 {[%emt 0:00:58]} e5 {[%emt 0:00:50]} 10. Re1 {[%emt 0:00:16]} Bd6 {[%emt 0:01:23]} 11. d3 {[%emt 0:00:05]} f5 {[%emt 0:00:42]} 12. a4 {[%emt 0:00:16]} h6 {[%emt 0:00:37]} 13. Bd5 {[%emt 0:01:20]} Nf6 {[%emt 0:00:50]} 14. Bc4 {[%emt 0:00:02]} g5 {[%emt 0:02:44]} 15. Be3 {[%emt 0:00:18]} Ng4 {[%emt 0:01:08]} 16. Bxd4 {[%emt 0:00:06]} exd4 {[%emt 0:01:57]} 17. Be6 {[%emt 0:00:02]} Bxh2+ {[%emt 0:00:13]} 18. Kf1 {[%emt 0:00:01]} Ne3+ {[%emt 0:01:26]} 19. Rxe3 {[%emt 0:00:02]} dxe3 {[%emt 0:00:03]} 20. Bxd7+ {[%emt 0:00:02]} Rxd7 {[%emt 0:00:07]} 21. fxe3 {[%emt 0:00:07]} f4 {[%emt 0:00:19]} 22. Qh5 {[%emt 0:01:20]} Bg3 {[%emt 0:00:34]} 23. Ne4 {[%emt 0:00:03]} Rf8 {[%emt 0:00:56]} 24. Ke2 {[%emt 0:00:07]} Rdf7 {[%emt 0:00:22]} 25. Rf1 {[%emt 0:00:02]} Bh4 {[%emt 0:00:51]} 26. exf4 {[%emt 0:00:10]} Rf5 {[%emt 0:00:16]} 27. g3 {[%emt 0:00:25]} gxf4 {[%emt 0:00:43]} 28. Qxh4 {[%emt 0:00:01]} 1-0